fUSD/lending_fUSD_20260630
["ID","MTS","AMOUNT","RATE_DAILY","PERIOD"]
[426712385,1782756649000,-163.44,0.00029087,7]
[426712398,1782756649000,-174.09,0.00029232,7]
[426712384,1782756649000,-582.53,0.00029081,7]
[426712370,1782756649000,-173.93,0.00028964,30]
[426712383,1782756649000,-611.57,0.00029079,7]
[426712414,1782756649000,-310.0,0.00029617,30]
[426712359,1782756649000,-582.53,0.0002887,30]
[426712361,1782756649000,-163.44,0.00028892,2]
[426712371,1782756649000,-163.44,0.00028989,30]
[426712360,1782756649000,-593.91,0.0002889,30]
[426712362,1782756649000,-473.02,0.00028893,30]
[426712364,1782756649000,-454.7,0.00028896,30]
[426712365,1782756649000,-599.17,0.00028904,2]
[426712367,1782756649000,-239.56530748,0.00028924,2]
[426712369,1782756649000,-350.0,0.00028951,2]
[426712368,1782756649000,-163.44,0.00028941,7]
[426712366,1782756649000,-173.93,0.0002891,7]
[426712373,1782756649000,-302.0,0.00029,7]
[426712381,1782756649000,-151.83365069,0.00029058,2]
[426712374,1782756649000,-1668.22,0.00029,7]
[426712372,1782756649000,-10000.0,0.00029,2]
[426712380,1782756649000,-163.44,0.00029038,2]
[426712379,1782756649000,-503.0,0.00029025,4]
[426712376,1782756649000,-1195.70827207,0.00029003,2]
[426712375,1782756649000,-216.58458871,0.00029,7]
[426712377,1782756649000,-1160.91944732,0.00029003,2]
[426712378,1782756649000,-173.93,0.00029018,2]
[426712382,1782756649000,-173.93,0.00029071,7]
[426712386,1782756649000,-593.91,0.00029098,7]
[426712408,1782756649000,-329.0,0.00029536,10]
[426712363,1782756649000,-567.41,0.00028893,30]
[426712409,1782756649000,-350.0,0.00029584,13]
[426712450,1782756649000,-245.16032166,0.000299,2]
[426712442,1782756649000,-245.16032166,0.000299,2]
[426712446,1782756649000,-245.16032166,0.000299,2]
[426712449,1782756649000,-245.16032166,0.000299,2]
[426712448,1782756649000,-245.16032166,0.000299,2]
[426712447,1782756649000,-245.16032166,0.000299,2]
[426712445,1782756649000,-245.16032166,0.000299,2]
[426712444,1782756649000,-245.16032166,0.000299,2]
[426712453,1782756649000,-245.16032166,0.000299,2]
[426712451,1782756649000,-245.16032166,0.000299,2]
[426712452,1782756649000,-245.16032166,0.000299,2]
[426712457,1782756649000,-245.16032166,0.000299,2]
[426712456,1782756649000,-245.16032166,0.000299,2]
[426712463,1782756649000,-2000.0,0.00029999,15]
[426712462,1782756649000,-2000.0,0.00029999,10]
[426712458,1782756649000,-245.16032166,0.000299,2]
[426712460,1782756649000,-245.16032166,0.000299,2]
[426712464,1782756649000,-455788.60581617,0.0003,10]
[426712455,1782756649000,-245.16032166,0.000299,2]
[426712454,1782756649000,-245.16032166,0.000299,2]
[426712459,1782756649000,-245.16032166,0.000299,2]
[426712461,1782756649000,-2000.0,0.00029999,2]
[426712465,1782756649000,-3616.32755545,0.0003,10]
[426712439,1782756649000,-1073.45,0.000299,7]
[426712441,1782756649000,-245.16032182,0.000299,2]
[426712443,1782756649000,-245.16032166,0.000299,2]
[426712438,1782756649000,-2000.0,0.0002985,7]
[426712411,1782756649000,-351.0,0.00029617,30]
[426712415,1782756649000,-218.0,0.00029617,30]
[426712416,1782756649000,-700.0,0.00029642,2]
[426712440,1782756649000,-447.88902025,0.000299,2]
[426712417,1782756649000,-151.83365069,0.00029643,2]
[426712426,1782756649000,-503.0,0.00029654,4]
[426712422,1782756649000,-796.0,0.00029652,30]
[426712423,1782756649000,-264.0,0.00029652,30]
[426712427,1782756649000,-1000.0,0.0002967,6]
[426712424,1782756649000,-312.0,0.00029652,30]
[426712421,1782756649000,-197.0,0.00029652,30]
[426712425,1782756649000,-564.01,0.00029653,7]
[426712418,1782756649000,-819.0,0.00029652,30]
[426712420,1782756649000,-157.0,0.00029652,30]
[426712419,1782756649000,-886.0,0.00029652,30]
[426712437,1782756649000,-2000.0,0.00029833,5]
[426712434,1782756649000,-250.0,0.00029787,7]
[426712429,1782756649000,-289069.3593383,0.00029738,2]
[426712436,1782756649000,-1668.22,0.000298,7]
[426712433,1782756649000,-277.297046,0.00029738,7]
[426712412,1782756649000,-158.0,0.00029617,30]
[426712432,1782756649000,-151.0,0.00029738,7]
[426712435,1782756649000,-250.0,0.00029787,7]
[426712431,1782756649000,-289069.3593385,0.00029738,2]
[426712430,1782756649000,-580.9162384,0.00029738,2]
[426712428,1782756649000,-234.0,0.00029673,10]
[426712468,1782756650000,-41173.40249475,0.0003,10]
[426712466,1782756650000,-2748.81801007,0.0003,10]
[426712467,1782756650000,-6282.53229508,0.0003,10]
[426712475,1782756947000,-160.0,0.00012626,2]
[426712476,1782756948000,1500000.0,0.00021173,120]
[426712477,1782756953000,500.0,0.00029635,120]
[426712478,1782757000000,-231.32661268,0.00012054,2]
[426712479,1782757054000,-152.0,0.00012696,2]
[426712480,1782757107000,-153.0,0.00012697,2]
[426712481,1782757160000,-151.0,0.00012697,2]
[426712484,1782757161000,-72.58523109,0.00012697,2]
[426712483,1782757161000,-150.0,0.00012697,2]
[426712482,1782757161000,-153.0,0.00012697,2]
[426712485,1782757215000,-165.45,0.00012407,2]
[426712486,1782757223000,151.0,0.00029635,120]
[426712488,1782757225000,151.0,0.00029635,120]
[426712487,1782757225000,151.0,0.00029635,120]
[426712489,1782757226000,151.0,0.00029635,120]
[426712491,1782757227000,151.0,0.00029635,120]
[426712490,1782757227000,151.0,0.00029635,120]
[426712492,1782757228000,151.0,0.00029635,120]
[426712493,1782757230000,152.0,0.00029635,120]
[426712495,1782757232000,151.0,0.00029635,120]
[426712494,1782757232000,151.0,0.00029635,120]
[426712497,1782757233000,151.0,0.00029635,120]
[426712496,1782757233000,151.0,0.00029635,120]
[426712498,1782757234000,151.0,0.00029635,120]
[426712499,1782757235000,151.0,0.00029635,120]
[426712500,1782757237000,172.0,0.00029635,120]
[426712502,1782757238000,166.0,0.00029635,120]
[426712501,1782757238000,166.0,0.00029635,120]
[426712503,1782757268000,-150.0,0.00012445,2]
[426712504,1782757295000,333.20049485,0.00011982,2]
[426712505,1782757296000,177.39581923,0.00011982,2]
[426712506,1782757321000,-174.52,0.00012462,2]
[426712507,1782757374000,-151.69,0.00012472,2]
[426712508,1782757428000,-574.63,0.00012496,2]
[426712509,1782757520000,153.0,0.00029635,120]
[426712510,1782757521000,152.41577836,0.00029635,120]
[426712512,1782757524000,151.0,0.00029635,120]
[426712511,1782757524000,151.0,0.00029635,120]
[426712514,1782757525000,151.0,0.00029635,120]
[426712513,1782757525000,151.0,0.00029635,120]
[426712517,1782757526000,151.0,0.00029635,120]
[426712516,1782757526000,151.0,0.00029635,120]
[426712518,1782757527000,151.0,0.00029635,120]
[426712520,1782757532000,151.0,0.00029635,120]
[426712519,1782757532000,500.0,0.00029635,120]
[426712521,1782757533000,619.24,0.00029999,120]
[426712523,1782757551000,211.21,0.00029999,120]
[426712522,1782757551000,500.0,0.00029635,120]
[426712525,1782757615000,166.66,0.00011989,2]
[426712524,1782757615000,166.66,0.00011742,2]
[426712526,1782757666000,500.0,0.00029635,120]
[426712528,1782757666000,239.22,0.00030124,120]
[426712527,1782757666000,500.0,0.00029999,120]
[426712529,1782757700000,233.82,0.00029635,120]
[426712530,1782757740000,2000.0,0.00030133,120]
[426712531,1782757752000,500.0,0.00011963,2]
[426712532,1782757764000,-166.66,0.00012236,2]
[426712533,1782757764000,-155.28,0.00012395,2]
[426712534,1782757764000,-166.66,0.00012484,2]
[426712535,1782757764000,-2268.47,0.00012496,2]
[426712536,1782757764000,-160.0,0.00012619,2]
[426712537,1782757764000,-150.0,0.0001262,2]
[426712538,1782757764000,-78.41476891,0.00012697,2]
[426712539,1782757764000,-150.0,0.00012697,2]
[426712541,1782757764000,-150.0,0.00012697,2]
[426712543,1782757764000,-151.0,0.00012699,2]
[426712540,1782757764000,-152.0,0.00012697,2]
[426712545,1782757764000,-166.66,0.00012731,2]
[426712554,1782757764000,-500.0,0.00012778,2]
[426712542,1782757764000,-153.0,0.00012697,2]
[426712552,1782757764000,-500.0,0.00012778,2]
[426712551,1782757764000,-500.0,0.00012778,2]
[426712550,1782757764000,-500.0,0.00012778,2]
[426712553,1782757764000,-500.0,0.00012778,2]
[426712548,1782757764000,-909.0,0.00012771,2]
[426712544,1782757764000,-153.0,0.00012705,2]
[426712547,1782757764000,-912.0,0.00012771,2]
[426712546,1782757764000,-152.0,0.00012733,2]
[426712549,1782757764000,-150.0,0.00012778,2]
[426712560,1782757765000,-500.0,0.00012778,2]
[426712555,1782757765000,-500.0,0.00012778,2]
[426712556,1782757765000,-500.0,0.00012778,2]
[426712557,1782757765000,-500.0,0.00012778,2]
[426712558,1782757765000,-500.0,0.00012778,2]
[426712559,1782757765000,-183.37474504,0.00012778,2]
[426712562,1782757765000,-500.0,0.00012778,2]
[426712561,1782757765000,-500.0,0.00012778,2]
[426712564,1782757765000,-500.0,0.00012778,2]
[426712570,1782757765000,-150.99,0.00012783,2]
[426712569,1782757765000,-884.0,0.00012783,2]
[426712568,1782757765000,-898.0,0.00012783,2]
[426712563,1782757765000,-500.0,0.00012778,2]
[426712565,1782757765000,-500.0,0.00012778,2]
[426712571,1782757765000,-1239.49048606,0.00012783,2]
[426712566,1782757765000,-500.0,0.00012778,2]
[426712567,1782757765000,-499.99999999,0.00012778,2]
[426712581,1782757795000,-151.0,0.00012939,2]
[426712574,1782757795000,-900.0,0.00012798,2]
[426712572,1782757795000,-3840.26951394,0.00012783,2]
[426712573,1782757795000,-299.99,0.00012783,2]
[426712575,1782757795000,-903.0,0.00012798,2]
[426712577,1782757795000,-166.66,0.00012826,2]
[426712576,1782757795000,-574.63,0.00012808,2]
[426712579,1782757795000,-905.0,0.00012854,2]
[426712580,1782757795000,-903.0,0.0001291,2]
[426712578,1782757795000,-893.0,0.00012854,2]
[426712585,1782757795000,-155.10652248,0.00012965,2]
[426712584,1782757795000,-500.0,0.00012965,2]
[426712591,1782757795000,-166.66,0.00012978,2]
[426712583,1782757795000,-500.0,0.00012965,2]
[426712586,1782757795000,-500.0,0.00012965,2]
[426712589,1782757795000,-917.0,0.00012966,2]
[426712588,1782757795000,-414.24521898,0.00012965,2]
[426712587,1782757795000,-490.51033572,0.00012965,2]
[426712590,1782757795000,-900.0,0.00012966,2]
[426712582,1782757795000,-153.0,0.00012939,2]
[426712593,1782757796000,-2632.32,0.00012978,2]
[426712592,1782757796000,-6910.11,0.00012978,2]
[426712594,1782757824000,151.0,0.00029635,120]
[426712601,1782757832000,-153.0,0.0001301,2]
[426712600,1782757832000,-151.0,0.0001301,2]
[426712599,1782757832000,-261.04878922,0.0001301,2]
[426712603,1782757832000,-223.45880616,0.00013047,2]
[426712602,1782757832000,-890.0,0.00013035,2]
[426712606,1782757832000,-889.0,0.00013064,2]
[426712605,1782757832000,-887.0,0.00013064,2]
[426712604,1782757832000,-693.54119384,0.00013047,2]
[426712607,1782757832000,-896.0,0.0001308,2]
[426712608,1782757832000,-892.0,0.00013092,2]
[426712610,1782757832000,-166.66,0.00013249,2]
[426712617,1782757832000,-53085.98230986,0.00013425,2]
[426712611,1782757832000,-160.0,0.00013258,2]
[426712613,1782757832000,-893.0,0.00013339,2]
[426712614,1782757832000,-150.0,0.00013424,2]
[426712609,1782757832000,-574.63,0.0001312,2]
[426712618,1782757832000,-314.69518012,0.00013425,2]
[426712616,1782757832000,-33554.90402863,0.00013425,2]
[426712620,1782757832000,-287.06431718,0.00013425,2]
[426712619,1782757832000,-591.86802884,0.00013425,2]
[426712612,1782757832000,-886.0,0.00013339,2]
[426712615,1782757832000,-8655.42334432,0.00013425,2]
[426712621,1782757832000,-487.38503545,0.00013425,2]
[426712622,1782757832000,-468.01459246,0.00013425,2]
[426712632,1782757838000,-904.0,0.00013035,2]
[426712633,1782757838000,-18554.93670265,0.00013425,2]
[426712634,1782757838000,-582.57802036,0.00013425,2]
[426712655,1782757840000,-896.0,0.00013525,2]
[426712653,1782757840000,-910.0,0.00013525,2]
[426712650,1782757840000,-891.0,0.00013525,2]
[426712657,1782757840000,-886.0,0.00013525,2]
[426712652,1782757840000,-151.0,0.00013525,2]
[426712649,1782757840000,-152.0,0.00013525,2]
[426712651,1782757840000,-905.0,0.00013525,2]
[426712648,1782757840000,-896.0,0.00013525,2]
[426712647,1782757840000,-150.0,0.00013525,2]
[426712640,1782757840000,-128058.90813543,0.00013425,2]
[426712645,1782757840000,-904.0,0.00013525,2]
[426712643,1782757840000,-902.0,0.00013481,2]
[426712644,1782757840000,-3168.84422059,0.00013504,2]
[426712642,1782757840000,-574.63,0.00013433,2]
[426712641,1782757840000,-891.0,0.00013425,2]
[426712639,1782757840000,-6005.83680523,0.00013425,2]
[426712638,1782757840000,-12175.32659947,0.00013425,2]
[426712637,1782757840000,-1866.4119,0.00013425,2]
[426712654,1782757840000,-897.0,0.00013525,2]
[426712646,1782757840000,-917.0,0.00013525,2]
[426712656,1782757840000,-151.0,0.00013525,2]
[426712660,1782757840000,-166.66,0.00013673,2]
[426712658,1782757840000,-151.0,0.00013525,2]
[426712680,1782757840000,-300.0,0.00014311,2]
[426712677,1782757840000,-300.0,0.00014311,2]
[426712678,1782757840000,-300.0,0.00014311,2]
[426712679,1782757840000,-300.0,0.00014311,2]
[426712676,1782757840000,-300.0,0.00014311,2]
[426712662,1782757840000,-574.63,0.00013745,2]
[426712670,1782757840000,-500.0,0.00014299,2]
[426712669,1782757840000,-500.0,0.00014299,2]
[426712671,1782757840000,-500.0,0.00014299,2]
[426712672,1782757840000,-500.0,0.00014299,2]
[426712673,1782757840000,-183.99,0.00014299,2]
[426712667,1782757840000,-216.58458871,0.0001423,2]
[426712665,1782757840000,-393.08916699,0.000142,2]
[426712675,1782757840000,-1783.88925228,0.000143,2]
[426712674,1782757840000,-319.92072875,0.000143,2]
[426712666,1782757840000,-2500.0,0.000142,2]
[426712663,1782757840000,-166.66,0.00014096,2]
[426712661,1782757840000,-200.0,0.00013699,2]
[426712664,1782757840000,-3464.7819,0.000142,2]
[426712659,1782757840000,-894.0,0.00013525,2]
[426712668,1782757840000,-3478.05,0.00014249,2]
[426712711,1782757841000,-308.0,0.00016438,2]
[426712712,1782757841000,-1069.32,0.00016438,2]
[426712722,1782757841000,-958.17,0.00016932,2]
[426712700,1782757841000,-152.0,0.00014799,2]
[426712705,1782757841000,-151.69,0.0001559,2]
[426712706,1782757841000,-433.0,0.00015746,2]
[426712708,1782757841000,-2849.02,0.000162,2]
[426712710,1782757841000,-1783.88925227,0.00016256,2]
[426712713,1782757841000,-578.13,0.00016438,2]
[426712724,1782757841000,-922.33767072,0.00017198,2]
[426712720,1782757841000,-1037.24,0.00016931,2]
[426712718,1782757841000,-155.28,0.00016526,2]
[426712716,1782757841000,-987.81,0.00016438,2]
[426712715,1782757841000,-657.87,0.00016438,2]
[426712721,1782757841000,-560.78,0.00016931,2]
[426712719,1782757841000,-165.45,0.00016543,2]
[426712717,1782757841000,-540.31,0.00016438,2]
[426712723,1782757841000,-736.0,0.00017048,2]
[426712725,1782757841000,-883650.58320857,0.00017349,2]
[426712709,1782757841000,-993.97,0.000162,2]
[426712714,1782757841000,-586.29,0.00016438,2]
[426712728,1782757841000,-22344.75241486,0.00017349,2]
[426712692,1782757841000,-255.0,0.00014538,2]
[426712702,1782757841000,-150.0,0.00014799,2]
[426712681,1782757841000,-600.0,0.00014311,2]
[426712684,1782757841000,-600.0,0.00014311,2]
[426712682,1782757841000,-600.0,0.00014311,2]
[426712686,1782757841000,-367.18983847,0.00014399,2]
[426712685,1782757841000,-600.0,0.00014311,2]
[426712683,1782757841000,-600.0,0.00014311,2]
[426712688,1782757841000,-2000.0,0.000144,2]
[426712698,1782757841000,-153.0,0.00014799,2]
[426712691,1782757841000,-166.66,0.00014519,2]
[426712701,1782757841000,-883.0,0.00014799,2]
[426712687,1782757841000,-33347.6671,0.000144,2]
[426712690,1782757841000,-165.45,0.00014475,2]
[426712694,1782757841000,-909.0,0.00014799,2]
[426712693,1782757841000,-150.0,0.00014799,2]
[426712697,1782757841000,-884.0,0.00014799,2]
[426712695,1782757841000,-901.0,0.00014799,2]
[426712696,1782757841000,-150.0,0.00014799,2]
[426712699,1782757841000,-891.0,0.00014799,2]
[426712703,1782757841000,-166.66,0.00014943,2]
[426712704,1782757841000,-540.31,0.00015068,2]
[426712689,1782757841000,-155.28,0.0001446,2]
[426712726,1782757841000,-9410.76876244,0.00017349,2]
[426712707,1782757841000,-393.0891669,0.00015944,2]
[426712730,1782757841000,-913.53059035,0.00017349,2]
[426712752,1782757841000,-500.0,0.00018902,2]
[426712749,1782757841000,-2434.06370584,0.00018698,2]
[426712751,1782757841000,-151.69,0.00018708,2]
[426712754,1782757841000,-500.0,0.00018902,2]
[426712763,1782757841000,-500.0,0.00019355,7]
[426712764,1782757841000,-500.0,0.00019355,7]
[426712762,1782757841000,-500.0,0.00019355,7]
[426712760,1782757841000,-3000.0,0.00019178,7]
[426712765,1782757841000,-500.0,0.00019355,7]
[426712753,1782757841000,-500.0,0.00018902,2]
[426712766,1782757841000,-542.16,0.00019355,7]
[426712769,1782757841000,-1500.0,0.00019952,2]
[426712768,1782757841000,-263.54885701,0.00019433,10]
[426712770,1782757841000,-1500.0,0.00019952,2]
[426712767,1782757841000,-393.0891669,0.00019433,2]
[426712774,1782757841000,-497.0,0.0002,2]
[426712777,1782757841000,-303.0,0.0002,2]
[426712773,1782757841000,-158.0,0.0002,2]
[426712776,1782757841000,-840.0,0.0002,2]
[426712727,1782757841000,-13773.03267084,0.00017349,2]
[426712771,1782757841000,-280.681458,0.0002,2]
[426712750,1782757841000,-4293.9768959,0.00018698,2]
[426712772,1782757841000,-333.0,0.0002,2]
[426712755,1782757841000,-500.0,0.00018902,2]
[426712748,1782757841000,-165.45,0.00018611,2]
[426712729,1782757841000,-5528.60073196,0.00017349,2]
[426712732,1782757841000,-780.74,0.00017349,2]
[426712731,1782757841000,-5931.2486135,0.00017349,2]
[426712733,1782757841000,-648.94286654,0.00017349,2]
[426712736,1782757841000,-928.54,0.00017425,2]
[426712740,1782757841000,-319.92072875,0.000179,2]
[426712744,1782757841000,-8955.35,0.00018356,2]
[426712739,1782757841000,-393.0891669,0.00017689,2]
[426712738,1782757841000,-885.0,0.00017449,2]
[426712745,1782757841000,-514.02,0.00018388,2]
[426712734,1782757841000,-557017.80014094,0.00017349,2]
[426712737,1782757841000,-151.0,0.00017449,2]
[426712735,1782757841000,-1005.16,0.00017424,2]
[426712742,1782757841000,-973.07,0.00018082,2]
[426712743,1782757841000,-1783.88925227,0.00018211,2]
[426712747,1782757841000,-155.28,0.00018592,2]
[426712758,1782757841000,-3000.0,0.00019178,2]
[426712757,1782757841000,-896.0,0.00019029,2]
[426712746,1782757841000,-1252.0,0.00018471,2]
[426712741,1782757841000,-160.0,0.0001803,2]
[426712756,1782757841000,-151.0,0.0001901,2]
[426712815,1782757842000,-151.0,0.00020748,2]
[426712827,1782757842000,-1826.80035946,0.000209,2]
[426712826,1782757842000,-1124.13289574,0.000209,2]
[426712817,1782757842000,-151.0,0.00020748,2]
[426712816,1782757842000,-151.0,0.00020748,2]
[426712811,1782757842000,-151.0,0.00020748,2]
[426712810,1782757842000,-618.33104595,0.00020748,2]
[426712809,1782757842000,-151.0,0.00020748,2]
[426712808,1782757842000,-151.0,0.00020748,2]
[426712820,1782757842000,-151.0,0.00020748,2]
[426712805,1782757842000,-151.0,0.00020748,2]
[426712814,1782757842000,-151.0,0.00020748,2]
[426712819,1782757842000,-151.0,0.00020748,2]
[426712830,1782757842000,-419.04784237,0.00021,2]
[426712824,1782757842000,-151.0,0.00020748,2]
[426712822,1782757842000,-151.0,0.00020748,2]
[426712823,1782757842000,-151.0,0.00020748,2]
[426712821,1782757842000,-151.0,0.00020748,2]
[426712825,1782757842000,-151.0,0.00020748,2]
[426712829,1782757842000,-384.17225189,0.000209,2]
[426712837,1782757842000,-497.0,0.00021,2]
[426712839,1782757842000,-303.0,0.00021,2]
[426712828,1782757842000,-7002.84744101,0.000209,2]
[426712833,1782757842000,-10596.94258427,0.00021,2]
[426712832,1782757842000,-6111.0,0.00021,2]
[426712831,1782757842000,-15000.0,0.00021,2]
[426712806,1782757842000,-151.0,0.00020748,2]
[426712818,1782757842000,-151.0,0.00020748,2]
[426712807,1782757842000,-151.0,0.00020748,2]
[426712782,1782757842000,-859.0,0.0002,2]
[426712803,1782757842000,-384.17225189,0.000207,2]
[426712786,1782757842000,-1826.80035946,0.000201,2]
[426712785,1782757842000,-1124.13289574,0.000201,2]
[426712783,1782757842000,-14957.24,0.0002,2]
[426712778,1782757842000,-218.0,0.0002,2]
[426712780,1782757842000,-157.0,0.0002,2]
[426712779,1782757842000,-976.0,0.0002,2]
[426712836,1782757842000,-158.0,0.00021,2]
[426712784,1782757842000,-663.0,0.00020002,2]
[426712781,1782757842000,-197.0,0.0002,2]
[426712787,1782757842000,-7002.84744101,0.000201,2]
[426712789,1782757842000,-29999.99,0.00020145,2]
[426712791,1782757842000,-1783.88925227,0.00020167,2]
[426712790,1782757842000,-8790.64,0.00020145,2]
[426712796,1782757842000,-1124.13289574,0.000205,2]
[426712798,1782757842000,-7002.84744101,0.000205,2]
[426712797,1782757842000,-1826.80035946,0.000205,2]
[426712800,1782757842000,-1124.13289574,0.000207,2]
[426712788,1782757842000,-384.17225189,0.000201,2]
[426712794,1782757842000,-7002.84744101,0.000203,2]
[426712793,1782757842000,-1826.80035946,0.000203,2]
[426712792,1782757842000,-1124.13289574,0.000203,2]
[426712799,1782757842000,-384.17225189,0.000205,2]
[426712795,1782757842000,-384.17225189,0.000203,2]
[426712802,1782757842000,-7002.84744101,0.000207,2]
[426712813,1782757842000,-151.0,0.00020748,2]
[426712812,1782757842000,-1332.66636634,0.00020748,2]
[426712801,1782757842000,-1826.80035946,0.000207,2]
[426712804,1782757842000,-151.0,0.00020748,2]
[426712834,1782757842000,-8727.87476775,0.00021,2]
[426712838,1782757842000,-840.0,0.00021,2]
[426712841,1782757842000,-976.0,0.00021,2]
[426712873,1782757842000,-158.0,0.00022,2]
[426712872,1782757842000,-333.0,0.00022,2]
[426712884,1782757842000,-150.64535567,0.00022345,2]
[426712881,1782757842000,-859.0,0.00022,2]
[426712874,1782757842000,-497.0,0.00022,2]
[426712875,1782757842000,-840.0,0.00022,2]
[426712878,1782757842000,-976.0,0.00022,2]
[426712880,1782757842000,-197.0,0.00022,2]
[426712883,1782757842000,-1783.88925227,0.00022122,2]
[426712876,1782757842000,-303.0,0.00022,2]
[426712879,1782757842000,-166.0,0.00022,2]
[426712882,1782757842000,-3384.07,0.00022,2]
[426712877,1782757842000,-218.0,0.00022,2]
[426712871,1782757842000,-7002.84744101,0.00022,2]
[426712885,1782757842000,-170.22403168,0.00022345,2]
[426712892,1782757842000,-333.0,0.00023,2]
[426712888,1782757842000,-618.33104595,0.00022392,2]
[426712889,1782757842000,-714.08,0.00022466,2]
[426712890,1782757842000,-393.0891669,0.00022922,2]
[426712886,1782757842000,-181.89013726,0.00022345,2]
[426712896,1782757842000,-303.0,0.00023,2]
[426712894,1782757842000,-497.0,0.00023,2]
[426712893,1782757842000,-158.0,0.00023,2]
[426712895,1782757842000,-840.0,0.00023,2]
[426712891,1782757842000,-618.33104595,0.0002294,2]
[426712898,1782757842000,-976.0,0.00023,2]
[426712835,1782757842000,-333.0,0.00021,2]
[426712899,1782757842000,-197.0,0.00023,2]
[426712887,1782757842000,-170.22403167,0.00022345,2]
[426712868,1782757842000,-500.0,0.00021917,2]
[426712897,1782757842000,-218.0,0.00023,2]
[426712869,1782757842000,-5000.0,0.00021918,2]
[426712842,1782757842000,-157.0,0.00021,2]
[426712840,1782757842000,-218.0,0.00021,2]
[426712849,1782757842000,-618.33104595,0.00021296,2]
[426712843,1782757842000,-197.0,0.00021,2]
[426712846,1782757842000,-393.0891669,0.00021178,2]
[426712845,1782757842000,-7002.84744101,0.000211,2]
[426712847,1782757842000,-419.04784237,0.000212,2]
[426712865,1782757842000,-500.0,0.00021917,2]
[426712848,1782757842000,-47464.75,0.00021273,2]
[426712851,1782757842000,-419.04784237,0.000214,2]
[426712850,1782757842000,-7002.84744101,0.000213,2]
[426712854,1782757842000,-2374.17,0.00021567,2]
[426712853,1782757842000,-319.92072875,0.000215,2]
[426712844,1782757842000,-859.0,0.00021,2]
[426712860,1782757842000,-500.0,0.00021917,2]
[426712870,1782757842000,-164.53,0.00021918,2]
[426712852,1782757842000,-7002.84744101,0.000215,2]
[426712863,1782757842000,-500.0,0.00021917,2]
[426712867,1782757842000,-500.0,0.00021917,2]
[426712864,1782757842000,-500.0,0.00021917,2]
[426712861,1782757842000,-500.0,0.00021917,2]
[426712866,1782757842000,-500.0,0.00021917,2]
[426712859,1782757842000,-419.04784237,0.000219,2]
[426712855,1782757842000,-419.04784237,0.000216,2]
[426712858,1782757842000,-618.33104595,0.00021844,2]
[426712856,1782757842000,-7002.84744101,0.000217,2]
[426712857,1782757842000,-200.0,0.00021742,2]
[426712862,1782757842000,-500.0,0.00021917,2]
[426712949,1782757843000,-409.66282229,0.00024947,2]
[426712946,1782757843000,-1616.0,0.000249,5]
[426712942,1782757843000,-190.96501523,0.00024886,2]
[426712940,1782757843000,-201.20951602,0.00024886,2]
[426712944,1782757843000,-449.8263954,0.00024886,2]
[426712934,1782757843000,-1000.0,0.00024658,2]